[Event "Early-Titled-Tuesday-Blitz-July-09-2024"]
[Site "Chess.com"]
[Date "2024.07.09"]
[Round "11"]
[White "ThetNaung291"]
[Black "mapleaff"]
[Result "1-0"]
[WhiteElo "2451"]
[BlackElo "2356"]
[TimeControl "180+1"]
[EndTime "10:07:49 PDT"]
[Termination "ThetNaung291 won by resignation"]

1. e4 {[%clk 0:02:59.1]} 1... c5 {[%clk 0:03:00]} 2. Nc3 {[%clk 0:02:56.5]} 2...
a6 {[%clk 0:02:58.7]} 3. a4 {[%clk 0:02:55.5]} 3... e6 {[%clk 0:02:55.3]} 4. d3
{[%clk 0:02:48.8]} 4... Nc6 {[%clk 0:02:53.3]} 5. f4 {[%clk 0:02:48.4]} 5...
Nge7 {[%clk 0:02:47.9]} 6. Nf3 {[%clk 0:02:47.6]} 6... g6 {[%clk 0:02:45.2]} 7.
Be3 {[%clk 0:02:46.8]} 7... b6 {[%clk 0:02:44.4]} 8. a5 {[%clk 0:02:37.9]} 8...
Nxa5 {[%clk 0:02:20.3]} 9. Na4 {[%clk 0:02:35]} 9... Bg7 {[%clk 0:02:12.5]} 10.
c3 {[%clk 0:02:25.9]} 10... O-O {[%clk 0:02:09.1]} 11. Qc2 {[%clk 0:02:16]}
11... Nac6 {[%clk 0:02:05.7]} 12. Be2 {[%clk 0:01:58.4]} 12... d5 {[%clk
0:02:03.9]} 13. O-O {[%clk 0:01:57.7]} 13... Bb7 {[%clk 0:01:56.7]} 14. exd5
{[%clk 0:01:44.2]} 14... Nxd5 {[%clk 0:01:50]} 15. Bd2 {[%clk 0:01:43.7]} 15...
Rc8 {[%clk 0:01:45.6]} 16. Ng5 {[%clk 0:01:29.8]} 16... Ba8 {[%clk 0:00:46.4]}
17. Ne4 {[%clk 0:01:24.4]} 17... Nce7 {[%clk 0:00:33]} 18. b3 {[%clk 0:01:17.4]}
18... Nf5 {[%clk 0:00:31.2]} 19. Qc1 {[%clk 0:01:09.5]} 19... Qc7 {[%clk
0:00:26.7]} 20. Bf3 {[%clk 0:01:03.4]} 20... Rfd8 {[%clk 0:00:25.1]} 21. Nb2
{[%clk 0:01:02.2]} 21... Bb7 {[%clk 0:00:23.2]} 22. g3 {[%clk 0:00:59.2]} 22...
b5 {[%clk 0:00:22.8]} 23. Bg2 {[%clk 0:00:49.2]} 23... b4 {[%clk 0:00:22.3]} 24.
Nc4 {[%clk 0:00:44.5]} 24... Nxc3 {[%clk 0:00:17.6]} 25. Nxc3 {[%clk 0:00:43.7]}
25... bxc3 {[%clk 0:00:18.2]} 26. Bxc3 {[%clk 0:00:43.7]} 26... Bxg2 {[%clk
0:00:18.8]} 27. Kxg2 {[%clk 0:00:43.5]} 27... Rxd3 {[%clk 0:00:15.5]} 28. Bxg7
{[%clk 0:00:42.6]} 28... Kxg7 {[%clk 0:00:14.8]} 29. Qb2+ {[%clk 0:00:30.8]}
29... f6 {[%clk 0:00:14.9]} 30. Rad1 {[%clk 0:00:25]} 30... Rcd8 {[%clk
0:00:13]} 31. Rxd3 {[%clk 0:00:23.7]} 31... Rxd3 {[%clk 0:00:13.9]} 32. Qe2
{[%clk 0:00:20.3]} 32... Qc6+ {[%clk 0:00:11.9]} 33. Kg1 {[%clk 0:00:19.8]}
33... Rxb3 {[%clk 0:00:06.5]} 34. Na5 {[%clk 0:00:19.2]} 34... Nd4 {[%clk
0:00:04.1]} 35. Nxc6 {[%clk 0:00:12.2]} 35... Nxc6 {[%clk 0:00:05]} 36. Qxe6
{[%clk 0:00:11.2]} 36... Nd4 {[%clk 0:00:04.4]} 37. Qe7+ {[%clk 0:00:10.3]}
37... Kh6 {[%clk 0:00:04.1]} 38. Qxf6 {[%clk 0:00:09.7]} 38... Nf5 {[%clk
0:00:04]} 39. Qg5+ {[%clk 0:00:08.8]} 39... Kg7 {[%clk 0:00:03.3]} 40. Re1
{[%clk 0:00:09.7]} 40... Rb7 {[%clk 0:00:02.3]} 41. g4 {[%clk 0:00:08.3]} 41...
Nd4 {[%clk 0:00:02.8]} 42. Re7+ {[%clk 0:00:06.9]} 42... Rxe7 {[%clk 0:00:02.9]}
43. Qxe7+ {[%clk 0:00:07]} 43... Kg8 {[%clk 0:00:03.8]} 44. Qxc5 {[%clk
0:00:07.8]} 44... Nf3+ {[%clk 0:00:03.9]} 45. Kf2 {[%clk 0:00:07.6]} 45... Nd2
{[%clk 0:00:03.6]} 46. Qd5+ {[%clk 0:00:08.5]} 1-0

[Event "Early-Titled-Tuesday-Blitz-July-09-2024"]
[Site "Chess.com"]
[Date "2024.07.09"]
[Round "11"]
[White "nitpicker"]
[Black "ljuks68"]
[Result "0-1"]
[WhiteElo "2306"]
[BlackElo "2412"]
[TimeControl "180+1"]
[EndTime "10:07:54 PDT"]
[Termination "ljuks68 won on time"]

1. d4 {[%clk 0:03:00.9]} 1... d5 {[%clk 0:02:59.9]} 2. c4 {[%clk 0:03:00.2]}
2... c6 {[%clk 0:02:59.6]} 3. Nf3 {[%clk 0:02:59.6]} 3... Nf6 {[%clk 0:02:59]}
4. Qb3 {[%clk 0:03:00]} 4... a5 {[%clk 0:02:57]} 5. Nc3 {[%clk 0:02:50]} 5... a4
{[%clk 0:02:56.9]} 6. Nxa4 {[%clk 0:02:44.1]} 6... dxc4 {[%clk 0:02:53.7]} 7.
Qc2 {[%clk 0:02:44.2]} 7... b5 {[%clk 0:02:45.7]} 8. Nc5 {[%clk 0:02:40.8]} 8...
Nbd7 {[%clk 0:02:37]} 9. b4 {[%clk 0:02:26.6]} 9... Nd5 {[%clk 0:02:24.4]} 10.
Rb1 {[%clk 0:02:16]} 10... Nxc5 {[%clk 0:02:13.5]} 11. dxc5 {[%clk 0:02:11.8]}
11... g6 {[%clk 0:01:45.9]} 12. g3 {[%clk 0:02:11.8]} 12... Bg7 {[%clk
0:01:45.6]} 13. Bd2 {[%clk 0:02:01]} 13... Ra4 {[%clk 0:01:20.5]} 14. e4 {[%clk
0:01:51.7]} 14... c3 {[%clk 0:01:19.8]} 15. exd5 {[%clk 0:01:45.2]} 15... Bf5
{[%clk 0:01:08.1]} 16. Bd3 {[%clk 0:01:34.2]} 16... cxd2+ {[%clk 0:01:08.1]} 17.
Qxd2 {[%clk 0:01:34.3]} 17... Qxd5 {[%clk 0:01:04.1]} 18. Bxf5 {[%clk
0:01:21.4]} 18... Qxf5 {[%clk 0:01:04.2]} 19. Rb3 {[%clk 0:01:06.7]} 19... Qe4+
{[%clk 0:00:48.1]} 20. Kf1 {[%clk 0:01:00.7]} 20... O-O {[%clk 0:00:36]} 21. Kg2
{[%clk 0:01:00.4]} 21... Rfa8 {[%clk 0:00:29.5]} 22. Re1 {[%clk 0:00:57.2]}
22... Qf5 {[%clk 0:00:22.8]} 23. Rxe7 {[%clk 0:00:51.9]} 23... h6 {[%clk
0:00:21.5]} 24. Qd7 {[%clk 0:00:43]} 24... Rxa2 {[%clk 0:00:16.9]} 25. Qxf5
{[%clk 0:00:38.5]} 25... gxf5 {[%clk 0:00:17.1]} 26. Rbe3 {[%clk 0:00:26.9]}
26... Rb2 {[%clk 0:00:14.8]} 27. Re8+ {[%clk 0:00:24.5]} 27... Rxe8 {[%clk
0:00:14.4]} 28. Rxe8+ {[%clk 0:00:24.4]} 28... Kh7 {[%clk 0:00:15.2]} 29. Rc8
{[%clk 0:00:23.3]} 29... Rxb4 {[%clk 0:00:15.2]} 30. Rxc6 {[%clk 0:00:23.5]}
30... Rc4 {[%clk 0:00:15.6]} 31. Rc7 {[%clk 0:00:22.3]} 31... b4 {[%clk
0:00:15]} 32. Nh4 {[%clk 0:00:17.8]} 32... b3 {[%clk 0:00:12.6]} 33. Nxf5 {[%clk
0:00:15.1]} 33... Be5 {[%clk 0:00:10.3]} 34. Rb7 {[%clk 0:00:11.9]} 34... b2
{[%clk 0:00:10.1]} 35. Nd6 {[%clk 0:00:10]} 35... Rc2 {[%clk 0:00:03.1]} 36.
Nxf7 {[%clk 0:00:08.7]} 36... Bd4 {[%clk 0:00:03.7]} 37. Ne5+ {[%clk 0:00:03.9]}
37... Kg8 {[%clk 0:00:03.4]} 38. Nf3 {[%clk 0:00:02.3]} 38... Rxf2+ {[%clk
0:00:03.4]} 39. Kh3 {[%clk 0:00:02.7]} 39... Rxf3 {[%clk 0:00:03.7]} 40. c6
{[%clk 0:00:02.6]} 40... Rc3 {[%clk 0:00:03.2]} 41. c7 {[%clk 0:00:02.2]} 41...
b1=Q {[%clk 0:00:03.2]} 42. Rxb1 {[%clk 0:00:01.2]} 42... Rxc7 {[%clk
0:00:03.8]} 43. Rd1 {[%clk 0:00:01.8]} 43... Bg7 {[%clk 0:00:03.9]} 44. Rd5
{[%clk 0:00:02]} 44... Kh7 {[%clk 0:00:04.5]} 45. Kg4 {[%clk 0:00:02.2]} 45...
Rc4+ {[%clk 0:00:05.1]} 46. Kf3 {[%clk 0:00:01.6]} 46... Kg6 {[%clk 0:00:05.4]}
47. Rd6+ {[%clk 0:00:01]} 47... Bf6 {[%clk 0:00:05.5]} 48. h4 {[%clk 0:00:01.2]}
48... Kf5 {[%clk 0:00:05.2]} 49. Kg2 {[%clk 0:00:01.4]} 49... h5 {[%clk
0:00:05]} 50. Kh3 {[%clk 0:00:01.9]} 50... Be5 {[%clk 0:00:05.2]} 51. Rd5 {[%clk
0:00:02.2]} 51... Rc3 {[%clk 0:00:05.2]} 52. Rb5 {[%clk 0:00:02.7]} 52... Rxg3+
{[%clk 0:00:05.1]} 53. Kh2 {[%clk 0:00:03]} 53... Rb3+ {[%clk 0:00:05.4]} 54.
Kh1 {[%clk 0:00:02.8]} 54... Rxb5 {[%clk 0:00:05.1]} 0-1

[Event "Early-Titled-Tuesday-Blitz-July-09-2024"]
[Site "Chess.com"]
[Date "2024.07.09"]
[Round "11"]
[White "WPWPWP-2015"]
[Black "Twinstulle"]
[Result "1-0"]
[WhiteElo "2508"]
[BlackElo "2332"]
[TimeControl "180+1"]
[EndTime "10:07:55 PDT"]
[Termination "WPWPWP-2015 won on time"]

1. d4 {[%clk 0:02:59.6]} 1... Nf6 {[%clk 0:02:59.6]} 2. c4 {[%clk 0:02:58.5]}
2... c5 {[%clk 0:02:59.6]} 3. d5 {[%clk 0:02:56.7]} 3... b5 {[%clk 0:02:59.7]}
4. Qc2 {[%clk 0:02:54.8]} 4... bxc4 {[%clk 0:02:53.7]} 5. e4 {[%clk 0:02:54.3]}
5... d6 {[%clk 0:02:53.3]} 6. Nc3 {[%clk 0:02:36.1]} 6... Ba6 {[%clk 0:02:48.7]}
7. g4 {[%clk 0:02:31.3]} 7... g6 {[%clk 0:02:47.2]} 8. g5 {[%clk 0:02:30.9]}
8... Nfd7 {[%clk 0:02:46.9]} 9. h4 {[%clk 0:02:29.7]} 9... h5 {[%clk 0:02:41]}
10. Qa4 {[%clk 0:02:27.3]} 10... Bg7 {[%clk 0:02:34]} 11. f4 {[%clk 0:02:23.9]}
11... O-O {[%clk 0:02:32]} 12. Nf3 {[%clk 0:02:19.1]} 12... Nb6 {[%clk
0:02:24.9]} 13. Qc2 {[%clk 0:02:15.5]} 13... N8d7 {[%clk 0:02:24.9]} 14. Bh3
{[%clk 0:02:06.4]} 14... Qc7 {[%clk 0:02:12.9]} 15. O-O {[%clk 0:02:05.2]} 15...
Rae8 {[%clk 0:02:07.7]} 16. f5 {[%clk 0:01:56.2]} 16... Ne5 {[%clk 0:02:01.8]}
17. Nxe5 {[%clk 0:01:54.6]} 17... Bxe5 {[%clk 0:02:02.5]} 18. Bf4 {[%clk
0:01:48.7]} 18... Bd4+ {[%clk 0:01:54.7]} 19. Kh2 {[%clk 0:01:48.2]} 19... Bc8
{[%clk 0:01:50.9]} 20. Rae1 {[%clk 0:01:42.4]} 20... Kh7 {[%clk 0:01:49.6]} 21.
Nb5 {[%clk 0:01:29.5]} 21... Qb7 {[%clk 0:01:36.5]} 22. Nxd4 {[%clk 0:01:26.1]}
22... cxd4 {[%clk 0:01:37.4]} 23. a4 {[%clk 0:01:25.2]} 23... Qa6 {[%clk
0:01:27]} 24. e5 {[%clk 0:01:23.7]} 24... Qxa4 {[%clk 0:01:21.8]} 25. Qe4 {[%clk
0:01:20.4]} 25... dxe5 {[%clk 0:01:15.9]} 26. Bxe5 {[%clk 0:01:18.7]} 26... Qb5
{[%clk 0:01:14.4]} 27. Bxd4 {[%clk 0:01:09]} 27... Qxd5 {[%clk 0:01:12.6]} 28.
fxg6+ {[%clk 0:01:03.6]} 28... fxg6 {[%clk 0:01:11.3]} 29. Rxf8 {[%clk
0:00:58.1]} 29... Rxf8 {[%clk 0:01:09.5]} 30. Bxb6 {[%clk 0:00:39.6]} 30... Qxe4
{[%clk 0:00:53.3]} 31. Rxe4 {[%clk 0:00:40.5]} 31... Bxh3 {[%clk 0:00:49.5]} 32.
Rxe7+ {[%clk 0:00:39.3]} 32... Kg8 {[%clk 0:00:49]} 33. Bd4 {[%clk 0:00:37.6]}
33... Rf3 {[%clk 0:00:34.3]} 34. Rg7+ {[%clk 0:00:28.6]} 34... Kf8 {[%clk
0:00:34.6]} 35. Rxg6 {[%clk 0:00:27.9]} 35... Bg4 {[%clk 0:00:23.3]} 36. Bxa7
{[%clk 0:00:19.5]} 36... Rd3 {[%clk 0:00:18.2]} 37. Rb6 {[%clk 0:00:16.1]} 37...
Rh3+ {[%clk 0:00:17.4]} 38. Kg2 {[%clk 0:00:16.2]} 38... Rxh4 {[%clk 0:00:17.6]}
39. Rb8+ {[%clk 0:00:16.1]} 39... Kf7 {[%clk 0:00:17.4]} 40. Bf2 {[%clk
0:00:15.8]} 40... Rh3 {[%clk 0:00:16.9]} 41. Bg3 {[%clk 0:00:15.9]} 41... h4
{[%clk 0:00:14.9]} 42. Be5 {[%clk 0:00:15]} 42... Rb3 {[%clk 0:00:13.2]} 43. Rh8
{[%clk 0:00:13]} 43... h3+ {[%clk 0:00:12.6]} 44. Kh2 {[%clk 0:00:12.7]} 44...
Bf5 {[%clk 0:00:11.6]} 45. Rh6 {[%clk 0:00:12]} 45... Bg4 {[%clk 0:00:11.1]} 46.
Rf6+ {[%clk 0:00:11.8]} 46... Ke7 {[%clk 0:00:11.5]} 47. g6 {[%clk 0:00:11.9]}
47... Re3 {[%clk 0:00:08.9]} 48. g7 {[%clk 0:00:11.9]} 48... Re2+ {[%clk
0:00:06.3]} 49. Kg3 {[%clk 0:00:11.3]} 49... Rg2+ {[%clk 0:00:07]} 50. Kf4
{[%clk 0:00:11.2]} 50... Be6 {[%clk 0:00:07.1]} 51. Rh6 {[%clk 0:00:10.2]} 51...
h2 {[%clk 0:00:05.8]} 52. Ke3 {[%clk 0:00:10.3]} 52... Rg1 {[%clk 0:00:01.5]}
53. Rxh2 {[%clk 0:00:09.8]} 53... Rg6 {[%clk 0:00:01]} 54. Rh8 {[%clk 0:00:09]}
1-0

[Event "Early-Titled-Tuesday-Blitz-July-09-2024"]
[Site "Chess.com"]
[Date "2024.07.09"]
[Round "11"]
[White "wild3000"]
[Black "gafkens"]
[Result "0-1"]
[WhiteElo "2479"]
[BlackElo "2635"]
[TimeControl "180+1"]
[EndTime "10:07:58 PDT"]
[Termination "gafkens won by checkmate"]

1. e4 {[%clk 0:02:56.7]} 1... g6 {[%clk 0:03:00.9]} 2. d4 {[%clk 0:02:52.7]}
2... Bg7 {[%clk 0:03:01.8]} 3. g3 {[%clk 0:02:51.1]} 3... d5 {[%clk 0:02:26.5]}
4. e5 {[%clk 0:02:29.6]} 4... c5 {[%clk 0:02:25.2]} 5. dxc5 {[%clk 0:02:27.2]}
5... Bxe5 {[%clk 0:02:13.8]} 6. Bg2 {[%clk 0:02:27]} 6... e6 {[%clk 0:02:12.4]}
7. c3 {[%clk 0:02:20.1]} 7... Nc6 {[%clk 0:02:12.3]} 8. Nf3 {[%clk 0:02:18.9]}
8... Bg7 {[%clk 0:02:12.4]} 9. O-O {[%clk 0:02:18.9]} 9... Nf6 {[%clk
0:02:12.9]} 10. Nd4 {[%clk 0:02:16.8]} 10... O-O {[%clk 0:02:11.8]} 11. Re1
{[%clk 0:01:57.9]} 11... Re8 {[%clk 0:01:57.4]} 12. Bg5 {[%clk 0:01:45.6]} 12...
h6 {[%clk 0:01:52.9]} 13. Be3 {[%clk 0:01:41.1]} 13... e5 {[%clk 0:01:51]} 14.
Nb5 {[%clk 0:01:40.5]} 14... Be6 {[%clk 0:01:37.3]} 15. Nd6 {[%clk 0:01:39.5]}
15... Re7 {[%clk 0:01:37.6]} 16. Nd2 {[%clk 0:01:36.5]} 16... Ng4 {[%clk
0:01:14.4]} 17. Qa4 {[%clk 0:01:34.7]} 17... Nxe3 {[%clk 0:01:12.8]} 18. fxe3
{[%clk 0:01:34.5]} 18... Qd7 {[%clk 0:00:56.6]} 19. e4 {[%clk 0:01:26.2]} 19...
d4 {[%clk 0:00:44.3]} 20. c4 {[%clk 0:01:08]} 20... b6 {[%clk 0:00:41.2]} 21. b4
{[%clk 0:01:07.3]} 21... a5 {[%clk 0:00:30.4]} 22. cxb6 {[%clk 0:00:43.5]} 22...
Qxd6 {[%clk 0:00:30.1]} 23. c5 {[%clk 0:00:43.7]} 23... Qd7 {[%clk 0:00:28.9]}
24. b5 {[%clk 0:00:43.7]} 24... Nb4 {[%clk 0:00:28.9]} 25. c6 {[%clk 0:00:39.7]}
25... Qd6 {[%clk 0:00:25.2]} 26. b7 {[%clk 0:00:38.1]} 26... Rb8 {[%clk
0:00:24.7]} 27. Qxa5 {[%clk 0:00:35.2]} 27... Nc2 {[%clk 0:00:22.4]} 28. Rec1
{[%clk 0:00:29.5]} 28... Nxa1 {[%clk 0:00:22.3]} 29. Rxa1 {[%clk 0:00:25.2]}
29... Qc5 {[%clk 0:00:17.9]} 30. a4 {[%clk 0:00:20.1]} 30... d3+ {[%clk
0:00:18.3]} 31. Kh1 {[%clk 0:00:20.2]} 31... Qc2 {[%clk 0:00:12.5]} 32. Qb4
{[%clk 0:00:17.7]} 32... Bf8 {[%clk 0:00:13]} 33. Qb1 {[%clk 0:00:14.2]} 33...
Qxd2 {[%clk 0:00:12.8]} 34. b6 {[%clk 0:00:12.9]} 34... Rexb7 {[%clk 0:00:11.5]}
35. cxb7 {[%clk 0:00:12.7]} 35... Rxb7 {[%clk 0:00:12.4]} 36. a5 {[%clk
0:00:13.6]} 36... Bc5 {[%clk 0:00:11.5]} 37. Qd1 {[%clk 0:00:10.7]} 37... Qxd1+
{[%clk 0:00:11.3]} 38. Rxd1 {[%clk 0:00:11.6]} 38... Rd7 {[%clk 0:00:10.7]} 39.
Bf1 {[%clk 0:00:10.6]} 39... d2 {[%clk 0:00:07.7]} 40. Bb5 {[%clk 0:00:11.5]}
40... Rd8 {[%clk 0:00:08]} 41. b7 {[%clk 0:00:11]} 41... Ba7 {[%clk 0:00:06.5]}
42. a6 {[%clk 0:00:10.1]} 42... Bb3 {[%clk 0:00:06.6]} 43. Rb1 {[%clk
0:00:08.3]} 43... d1=Q+ {[%clk 0:00:06.7]} 44. Rxd1 {[%clk 0:00:08.5]} 44...
Rxd1+ {[%clk 0:00:07.6]} 45. Kg2 {[%clk 0:00:09.2]} 45... Rd2+ {[%clk
0:00:08.5]} 46. Kf3 {[%clk 0:00:09.2]} 46... Bc2 {[%clk 0:00:09.4]} 47. Bc6
{[%clk 0:00:08.5]} 47... Rf2+ {[%clk 0:00:08.5]} 48. Kg4 {[%clk 0:00:08]} 48...
Bd1+ {[%clk 0:00:09.4]} 49. Kh3 {[%clk 0:00:08.2]} 49... h5 {[%clk 0:00:09.7]}
50. Kh4 {[%clk 0:00:08.1]} 50... Kg7 {[%clk 0:00:08.8]} 51. h3 {[%clk
0:00:08.3]} 51... f6 {[%clk 0:00:07.4]} 52. g4 {[%clk 0:00:08.5]} 52... Rg2
{[%clk 0:00:06.9]} 53. g5 {[%clk 0:00:03.2]} 53... fxg5# {[%clk 0:00:06.7]} 0-1

[Event "Early-Titled-Tuesday-Blitz-July-09-2024"]
[Site "Chess.com"]
[Date "2024.07.09"]
[Round "11"]
[White "AA95"]
[Black "KubaGepard"]
[Result "0-1"]
[WhiteElo "2516"]
[BlackElo "2640"]
[TimeControl "180+1"]
[EndTime "10:08:00 PDT"]
[Termination "KubaGepard won on time"]

1. Nf3 {[%clk 0:03:00.9]} 1... d5 {[%clk 0:02:59.8]} 2. g3 {[%clk 0:03:01.1]}
2... Nf6 {[%clk 0:03:00.2]} 3. Bg2 {[%clk 0:03:01.5]} 3... g6 {[%clk 0:03:00.1]}
4. O-O {[%clk 0:03:02.1]} 4... Bg7 {[%clk 0:02:59.3]} 5. d4 {[%clk 0:03:03]}
5... O-O {[%clk 0:02:55.6]} 6. Bf4 {[%clk 0:03:03.5]} 6... c5 {[%clk 0:02:54]}
7. c3 {[%clk 0:03:03.9]} 7... Nc6 {[%clk 0:02:50.8]} 8. dxc5 {[%clk 0:03:03.7]}
8... Ne4 {[%clk 0:02:47.3]} 9. Nd4 {[%clk 0:03:01.2]} 9... Nxc5 {[%clk
0:02:44.5]} 10. Nxc6 {[%clk 0:03:00.1]} 10... bxc6 {[%clk 0:02:44.4]} 11. Nd2
{[%clk 0:02:59.1]} 11... Ba6 {[%clk 0:02:39.6]} 12. Nb3 {[%clk 0:02:58.2]} 12...
Na4 {[%clk 0:02:38.2]} 13. Qd2 {[%clk 0:02:53.5]} 13... Nb6 {[%clk 0:02:32.9]}
14. Nc5 {[%clk 0:02:46.2]} 14... Bc8 {[%clk 0:02:24.8]} 15. Rad1 {[%clk
0:02:41.5]} 15... e5 {[%clk 0:02:22]} 16. Bg5 {[%clk 0:02:40]} 16... f6 {[%clk
0:02:21.3]} 17. Bh6 {[%clk 0:02:39.8]} 17... Nc4 {[%clk 0:02:21]} 18. Qc1 {[%clk
0:02:39.5]} 18... Bxh6 {[%clk 0:02:16.3]} 19. Qxh6 {[%clk 0:02:39.4]} 19... Nxb2
{[%clk 0:02:14]} 20. Rb1 {[%clk 0:02:31.5]} 20... Nc4 {[%clk 0:02:10.1]} 21. e4
{[%clk 0:02:31.1]} 21... Qe7 {[%clk 0:02:03.6]} 22. Nb3 {[%clk 0:02:07.8]} 22...
Be6 {[%clk 0:02:01.6]} 23. Rbd1 {[%clk 0:02:04.4]} 23... Rfd8 {[%clk 0:02:00.6]}
24. Rfe1 {[%clk 0:01:56.8]} 24... a5 {[%clk 0:01:58.7]} 25. f4 {[%clk
0:01:54.8]} 25... a4 {[%clk 0:01:57.5]} 26. f5 {[%clk 0:01:46.5]} 26... axb3
{[%clk 0:01:51.6]} 27. axb3 {[%clk 0:01:45.5]} 27... Nb2 {[%clk 0:01:43.4]} 28.
Rd2 {[%clk 0:01:44.3]} 28... gxf5 {[%clk 0:01:38.2]} 29. exf5 {[%clk 0:01:43.7]}
29... Bxf5 {[%clk 0:01:37.5]} 30. Rxb2 {[%clk 0:01:09.4]} 30... Qc5+ {[%clk
0:01:35.5]} 31. Qe3 {[%clk 0:00:57.6]} 31... Qxe3+ {[%clk 0:01:31.8]} 32. Rxe3
{[%clk 0:00:58.2]} 32... Ra1+ {[%clk 0:01:31.7]} 33. Kf2 {[%clk 0:00:58.1]}
33... Kg7 {[%clk 0:01:24.1]} 34. Rd2 {[%clk 0:00:48.4]} 34... Be6 {[%clk
0:01:18]} 35. Bf1 {[%clk 0:00:37.7]} 35... c5 {[%clk 0:01:12]} 36. g4 {[%clk
0:00:24.2]} 36... d4 {[%clk 0:01:07.8]} 37. Rg3 {[%clk 0:00:23.9]} 37... Rc1
{[%clk 0:01:03.8]} 38. cxd4 {[%clk 0:00:20.3]} 38... cxd4 {[%clk 0:01:00.5]} 39.
Bg2 {[%clk 0:00:15.6]} 39... Rc3 {[%clk 0:00:52.5]} 40. Be4 {[%clk 0:00:07.2]}
40... Rb8 {[%clk 0:00:49.4]} 41. Rxc3 {[%clk 0:00:03.8]} 41... dxc3 {[%clk
0:00:49.6]} 42. Rd6 {[%clk 0:00:04.6]} 42... Bxg4 {[%clk 0:00:46.5]} 43. Rc6
{[%clk 0:00:04.3]} 43... Rxb3 {[%clk 0:00:46.4]} 44. Kg3 {[%clk 0:00:03.4]}
44... f5 {[%clk 0:00:43.9]} 45. Bd5 {[%clk 0:00:02.4]} 45... Ra3 {[%clk
0:00:39.5]} 46. Kh4 {[%clk 0:00:02.9]} 46... h6 {[%clk 0:00:38.6]} 47. Rc7+
{[%clk 0:00:02.6]} 47... Kf8 {[%clk 0:00:37.1]} 48. h3 {[%clk 0:00:02.6]} 48...
Be2 {[%clk 0:00:32.6]} 49. Rf7+ {[%clk 0:00:02]} 49... Ke8 {[%clk 0:00:32.1]}
50. Rc7 {[%clk 0:00:01.8]} 50... Kd8 {[%clk 0:00:28.9]} 51. Rc5 {[%clk 0:00:02]}
51... Kd7 {[%clk 0:00:27.9]} 52. Bg8 {[%clk 0:00:01.9]} 52... Bf1 {[%clk
0:00:22.9]} 53. Kh5 {[%clk 0:00:01.6]} 53... Kd6 {[%clk 0:00:21.1]} 54. Rd5+
{[%clk 0:00:01.3]} 54... Kc6 {[%clk 0:00:20.5]} 55. Rxe5 {[%clk 0:00:01.5]}
55... c2 {[%clk 0:00:20]} 56. Re8 {[%clk 0:00:01.7]} 56... Kd7 {[%clk
0:00:19.5]} 57. Re1 {[%clk 0:00:01]} 57... Be2+ {[%clk 0:00:19.3]} 58. Kxh6
{[%clk 0:00:01]} 58... Bd1 {[%clk 0:00:19.1]} 59. Bh7 {[%clk 0:00:01.1]} 59...
c1=Q+ {[%clk 0:00:18.2]} 0-1

[Event "Early-Titled-Tuesday-Blitz-July-09-2024"]
[Site "Chess.com"]
[Date "2024.07.09"]
[Round "11"]
[White "sergoy"]
[Black "BardArtem"]
[Result "1/2-1/2"]
[WhiteElo "2934"]
[BlackElo "2826"]
[TimeControl "180+1"]
[EndTime "10:08:02 PDT"]
[Termination "Game drawn - insufficient material"]

1. d4 {[%clk 0:03:00.9]} 1... d5 {[%clk 0:02:59.2]} 2. c4 {[%clk 0:03:01.2]}
2... e6 {[%clk 0:02:59.7]} 3. Nf3 {[%clk 0:03:01.2]} 3... Nf6 {[%clk 0:03:00.2]}
4. Nc3 {[%clk 0:03:01.9]} 4... c5 {[%clk 0:03:00.2]} 5. cxd5 {[%clk 0:03:02.1]}
5... Nxd5 {[%clk 0:03:01.1]} 6. e4 {[%clk 0:03:02.4]} 6... Nxc3 {[%clk
0:03:01.7]} 7. bxc3 {[%clk 0:03:03.3]} 7... cxd4 {[%clk 0:03:02.4]} 8. cxd4
{[%clk 0:03:04.2]} 8... Bb4+ {[%clk 0:03:03]} 9. Bd2 {[%clk 0:03:04.2]} 9...
Bxd2+ {[%clk 0:03:03.8]} 10. Qxd2 {[%clk 0:03:05.1]} 10... O-O {[%clk
0:03:04.6]} 11. Bc4 {[%clk 0:03:04.6]} 11... Nd7 {[%clk 0:03:05.2]} 12. O-O
{[%clk 0:03:04.3]} 12... b6 {[%clk 0:03:05.9]} 13. Rac1 {[%clk 0:03:02.3]} 13...
Bb7 {[%clk 0:03:05.8]} 14. d5 {[%clk 0:03:02.7]} 14... exd5 {[%clk 0:03:01.3]}
15. Bxd5 {[%clk 0:03:03.6]} 15... Bxd5 {[%clk 0:02:59.8]} 16. exd5 {[%clk
0:03:02.6]} 16... Nc5 {[%clk 0:02:56.5]} 17. Rfe1 {[%clk 0:02:50.2]} 17... Qf6
{[%clk 0:02:46]} 18. Re5 {[%clk 0:02:40.6]} 18... Rad8 {[%clk 0:02:37.1]} 19.
Rce1 {[%clk 0:02:39.3]} 19... h6 {[%clk 0:02:31.8]} 20. h4 {[%clk 0:02:39.1]}
20... a5 {[%clk 0:02:24.9]} 21. h5 {[%clk 0:02:37]} 21... a4 {[%clk 0:02:09.1]}
22. Nd4 {[%clk 0:02:33.6]} 22... Rd7 {[%clk 0:01:44.2]} 23. Qe3 {[%clk
0:02:29.8]} 23... Rfd8 {[%clk 0:01:24]} 24. Nf5 {[%clk 0:02:15.4]} 24... Kh7
{[%clk 0:00:57.5]} 25. d6 {[%clk 0:02:15.3]} 25... Nb7 {[%clk 0:00:32.8]} 26.
Qe4 {[%clk 0:02:13.6]} 26... g6 {[%clk 0:00:08.2]} 27. hxg6+ {[%clk 0:01:44.3]}
27... Qxg6 {[%clk 0:00:09.1]} 28. Re7 {[%clk 0:01:44.6]} 28... Nxd6 {[%clk
0:00:09.4]} 29. Nxd6 {[%clk 0:01:39.5]} 29... Qxe4 {[%clk 0:00:10.3]} 30. R1xe4
{[%clk 0:01:36.8]} 30... Rxe7 {[%clk 0:00:08.5]} 31. Rxe7 {[%clk 0:01:30.2]}
31... Rxd6 {[%clk 0:00:08.8]} 32. Rxf7+ {[%clk 0:01:22.8]} 32... Kg6 {[%clk
0:00:08.8]} 33. Rf4 {[%clk 0:01:19.1]} 33... Rd1+ {[%clk 0:00:04]} 34. Kh2
{[%clk 0:01:11.2]} 34... Rd2 {[%clk 0:00:04.9]} 35. Kg3 {[%clk 0:00:56.4]} 35...
b5 {[%clk 0:00:01.9]} 36. Rb4 {[%clk 0:00:55.4]} 36... Rxa2 {[%clk 0:00:02.3]}
37. Rxb5 {[%clk 0:00:55.6]} 37... a3 {[%clk 0:00:02.9]} 38. Ra5 {[%clk
0:00:53.2]} 38... Ra1 {[%clk 0:00:03.3]} 39. Kg4 {[%clk 0:00:51.6]} 39... a2
{[%clk 0:00:02.8]} 40. Ra6+ {[%clk 0:00:36.6]} 40... Kf7 {[%clk 0:00:02]} 41. f4
{[%clk 0:00:36.5]} 41... h5+ {[%clk 0:00:01.9]} 42. Kf5 {[%clk 0:00:33.2]} 42...
Ke7 {[%clk 0:00:02.5]} 43. Ra7+ {[%clk 0:00:30]} 43... Kd6 {[%clk 0:00:03]} 44.
Kg6 {[%clk 0:00:30.7]} 44... h4 {[%clk 0:00:02.3]} 45. Ra6+ {[%clk 0:00:16.6]}
45... Kd5 {[%clk 0:00:02.5]} 46. Kf5 {[%clk 0:00:08.2]} 46... Kd4 {[%clk
0:00:03]} 47. Ra8 {[%clk 0:00:08.3]} 47... Ke3 {[%clk 0:00:02.6]} 48. Ra3+
{[%clk 0:00:06.9]} 48... Kf2 {[%clk 0:00:02.5]} 49. Kg6 {[%clk 0:00:05.3]} 49...
Kxg2 {[%clk 0:00:01.7]} 50. f5 {[%clk 0:00:05.9]} 50... h3 {[%clk 0:00:02.3]}
51. f6 {[%clk 0:00:06.3]} 51... h2 {[%clk 0:00:02]} 52. f7 {[%clk 0:00:06.8]}
52... Rf1 {[%clk 0:00:02]} 53. Rxa2+ {[%clk 0:00:06.4]} 53... Kg1 {[%clk
0:00:02.7]} 54. Rxh2 {[%clk 0:00:05.5]} 54... Kxh2 {[%clk 0:00:03.6]} 55. Kg7
{[%clk 0:00:06]} 55... Rxf7+ {[%clk 0:00:03.8]} 56. Kxf7 {[%clk 0:00:06.2]}
1/2-1/2